Workbook

Sheet 商学院
A1: 2023年专业实习工作量统计（商学院）
A2: 序号 | B2: 教师 | C2: 专业 | D2: 人员归属 | E2: 实习周数 | F2: 实习生人数 | G2: 实习课时 | H2: 备注 （201 级）
A3: 1 | B3: 薄乐 | C3: 会计 | D3: 行知 | E3: 10 | F3: 12 | G3: =0.2*E3*F3 -> 24.00 | H3: 2019级
A4: 2 | B4: 薄乐 | C4: 会计ACCA | D4: 行知 | E4: 10 | F4: 3 | G4: 6.00 | H4: 2019级
A5: 3 | B5: 陈茜 | C5: 金融 | D5: 行知 | E5: 10 | F5: 16 | G5: 32.00 | H5: 2019级
A6: 4 | B6: 陈雨景 | C6: 工管 | D6: 行知 | E6: 10 | F6: 11 | G6: 22.00 | H6: 2019级
A7: 5 | B7: 陈云娟 | C7: 会计 | D7: 行知 | E7: 10 | F7: 14 | G7: 28.00 | H7: 2019级
A8: 6 | B8: 陈云娟 | C8: 会计ACCA | D8: 行知 | E8: 10 | F8: 1 | G8: 2.00 | H8: 2019级
A9: 7 | B9: 邓智敏 | C9: 电商 | D9: 行知 | E9: 10 | F9: 5 | G9: 10.00 | H9: 2019级
A10: 8 | B10: 葛丽珍 | C10: 旅管专升本 | D10: 行知 | E10: 10 | F10: 8 | G10: 16.00 | H10: 2021级
A11: 9 | B11: 葛丽珍 | C11: 旅管复 | D11: 行知 | E11: 10 | F11: 2 | G11: 4.00 | H11: 2019级
A12: 10 | B12: 何宸希 | C12: 旅管专升本 | D12: 行知 | E12: 10 | F12: 10 | G12: 20.00 | H12: 2021级
A13: 11 | B13: 何宸希 | C13: 旅管复 | D13: 行知 | E13: 10 | F13: 2 | G13: 4.00 | H13: 2019级
A14: 12 | B14: 洪鸳肖 | C14: 国贸复 | D14: 行知 | E14: 10 | F14: 9 | G14: 18.00 | H14: 2019级
A15: 13 | B15: 黄德伟 | C15: 财管 | D15: 行知 | E15: 10 | F15: 5 | G15: 10.00 | H15: 2019级
A16: 14 | B16: 黄德伟 | C16: 财管三校生 | D16: 行知 | E16: 10 | F16: 7 | G16: 14.00 | H16: 2019级
A17: 15 | B17: 黄德伟 | C17: 财管专升本 | D17: 行知 | E17: 10 | F17: 8 | G17: 16.00 | H17: 2021级
A18: 16 | B18: 黄静 | C18: 会计 | D18: 行知 | E18: 10 | F18: 12 | G18: 24.00 | H18: 2019级
A19: 17 | B19: 黄静 | C19: 会计ACCA | D19: 行知 | E19: 10 | F19: 3 | G19: 6.00 | H19: 2019级
A20: 18 | B20: 黄亦君 | C20: 金融 | D20: 行知 | E20: 10 | F20: 16 | G20: 32.00 | H20: 2019级
A21: 19 | B21: 孔畅 | C21: 国贸复 | D21: 行知 | E21: 10 | F21: 9 | G21: 18.00 | H21: 2019级
A22: 20 | B22: 李洪江 | C22: 国贸复 | D22: 行知 | E22: 10 | F22: 9 | G22: 18.00 | H22: 2019级
A23: 21 | B23: 李绩才 | C23: 电商 | D23: 行知 | E23: 10 | F23: 6 | G23: 12.00 | H23: 2019级
A24: 22 | B24: 李金宁 | C24: 国贸复 | D24: 行知 | E24: 10 | F24: 9 | G24: 18.00 | H24: 2019级
A25: 23 | B25: 李云 | C25: 会计 | D25: 行知 | E25: 10 | F25: 10 | G25: 20.00 | H25: 2019级
A26: 24 | B26: 李云 | C26: 会计ACCA | D26: 行知 | E26: 10 | F26: 6 | G26: 12.00 | H26: 2019级
A27: 25 | B27: 林燕 | C27: 财管 | D27: 行知 | E27: 10 | F27: 15 | G27: 30.00 | H27: 2019级
A28: 26 | B28: 林燕 | C28: 财管三校生 | D28: 行知 | E28: 10 | F28: 6 | G28: 12.00 | H28: 2019级
A29: 27 | B29: 刘坤 | C29: 国贸复 | D29: 行知 | E29: 10 | F29: 9 | G29: 18.00 | H29: 2019级
A30: 28 | B30: 楼德华 | C30: 财管 | D30: 行知 | E30: 10 | F30: 6 | G30: 12.00 | H30: 2019级
A31: 29 | B31: 楼德华 | C31: 财管三校生 | D31: 行知 | E31: 10 | F31: 3 | G31: 6.00 | H31: 2019级
A32: 30 | B32: 楼德华 | C32: 财管专升本 | D32: 行知 | E32: 10 | F32: 11 | G32: 22.00 | H32: 2021级
A33: 31 | B33: 楼婷渊 | C33: 电商 | D33: 行知 | E33: 10 | F33: 5 | G33: 10.00 | H33: 2019级
A34: 32 | B34: 卢智健 | C34: 财管 | D34: 行知 | E34: 10 | F34: 10 | G34: 20.00 | H34: 2019级
A35: 33 | B35: 卢智健 | C35: 财管三校生 | D35: 行知 | E35: 10 | F35: 2 | G35: 4.00 | H35: 2019级
A36: 34 | B36: 卢智健 | C36: 财管专升本 | D36: 行知 | E36: 10 | F36: 8 | G36: 16.00 | H36: 2021级
A37: 35 | B37: 麻勇爱 | C37: 金融 | D37: 行知 | E37: 10 | F37: 17 | G37: 34.00 | H37: 2019级
A38: 36 | B38: 马林东 | C38: 工管 | D38: 行知 | E38: 10 | F38: 10 | G38: 20.00 | H38: 2019级
A39: 37 | B39: 毛卫东 | C39: 会计 | D39: 行知 | E39: 10 | F39: 13 | G39: 26.00 | H39: 2019级
A40: 38 | B40: 毛卫东 | C40: 会计ACCA | D40: 行知 | E40: 10 | F40: 3 | G40: 6.00 | H40: 2019级
A41: 39 | B41: 孟秀兰 | C41: 工管 | D41: 行知 | E41: 10 | F41: 11 | G41: 22.00 | H41: 2019级
A42: 40 | B42: 倪建明 | C42: 工管 | D42: 行知 | E42: 10 | F42: 11 | G42: 22.00 | H42: 2019级
A43: 41 | B43: 彭红英 | C43: 国贸复 | D43: 行知 | E43: 10 | F43: 10 | G43: 20.00 | H43: 2019级
A44: 42 | B44: 邵向霞 | C44: 财管 | D44: 行知 | E44: 10 | F44: 6 | G44: 12.00 | H44: 2019级
A45: 43 | B45: 邵向霞 | C45: 财管专升本 | D45: 行知 | E45: 10 | F45: 9 | G45: 18.00 | H45: 2021级
A46: 44 | B46: 邵向霞 | C46: 财管三校生 | D46: 行知 | E46: 10 | F46: 5 | G46: 10.00 | H46: 2019级
A47: 45 | B47: 盛欣欣 | C47: 财管三校生 | D47: 行知 | E47: 10 | F47: 8 | G47: 16.00 | H47: 2019级
A48: 46 | B48: 盛欣欣 | C48: 财管 | D48: 行知 | E48: 10 | F48: 12 | G48: 24.00 | H48: 2019级
A49: 47 | B49: 苏环 | C49: 工管 | D49: 行知 | E49: 10 | F49: 11 | G49: 22.00 | H49: 2019级
A50: 48 | B50: 陶表益 | C50: 金融 | D50: 行知 | E50: 10 | F50: 16 | G50: 32.00 | H50: 2019级
A51: 49 | B51: 汪永忠 | C51: 工管 | D51: 行知 | E51: 10 | F51: 11 | G51: 22.00 | H51: 2019级
A52: 50 | B52: 王家华 | C52: 会计 | D52: 行知 | E52: 10 | F52: 12 | G52: 24.00 | H52: 2019级
A53: 51 | B53: 王家华 | C53: 会计ACCA | D53: 行知 | E53: 10 | F53: 3 | G53: 6.00 | H53: 2019级
A54: 52 | B54: 王晓琳 | C54: 国贸复 | D54: 行知 | E54: 10 | F54: 9 | G54: 18.00 | H54: 2019级
A55: 53 | B55: 王晓玲 | C55: 国贸复 | D55: 行知 | E55: 10 | F55: 10 | G55: 20.00 | H55: 2019级
A56: 54 | B56: 王新伟 | C56: 工管 | D56: 行知 | E56: 10 | F56: 10 | G56: 20.00 | H56: 2019级
A57: 55 | B57: 王艳超 | C57: 会计 | D57: 行知 | E57: 10 | F57: 13 | G57: 26.00 | H57: 2019级
A58: 56 | B58: 王艳超 | C58: 会计ACCA | D58: 行知 | E58: 10 | F58: 2 | G58: 4.00 | H58: 2019级
A59: 57 | B59: 王正新 | C59: 工管 | D59: 行知 | E59: 10 | F59: 11 | G59: 22.00 | H59: 2019级
A60: 58 | B60: 吴黛茜 | C60: 会计 | D60: 行知 | E60: 10 | F60: 15 | G60: 30.00 | H60: 2019级
A61: 59 | B61: 吴佳 | C61: 旅管专升本 | D61: 行知 | E61: 10 | F61: 10 | G61: 20.00 | H61: 2021级
A62: 60 | B62: 吴佳 | C62: 旅管复 | D62: 行知 | E62: 10 | F62: 2 | G62: 4.00 | H62: 2019级
A63: 61 | B63: 邢影 | C63: 工管 | D63: 行知 | E63: 10 | F63: 11 | G63: 22.00 | H63: 2019级
A64: 62 | B64: 徐应涛 | C64: 电商 | D64: 行知 | E64: 10 | F64: 3 | G64: 6.00 | H64: 2019级
A65: 63 | B65: 严继莹 | C65: 金融 | D65: 行知 | E65: 10 | F65: 17 | G65: 34.00 | H65: 2019级
A66: 64 | B66: 杨洁 | C66: 会计 | D66: 行知 | E66: 10 | F66: 13 | G66: 26.00 | H66: 2019级
A67: 65 | B67: 杨洁 | C67: 会计ACCA | D67: 行知 | E67: 10 | F67: 2 | G67: =0.2*E67*F67 -> 4.00 | H67: 2019级
A68: 66 | B68: 叶小平 | C68: 财管 | D68: 行知 | E68: 10 | F68: 4 | G68: 8.00 | H68: 2019级
A69: 67 | B69: 叶小平 | C69: 财管三校生 | D69: 行知 | E69: 10 | F69: 9 | G69: 18.00 | H69: 2019级
A70: 68 | B70: 叶小平 | C70: 财管专升本 | D70: 行知 | E70: 10 | F70: 7 | G70: 14.00 | H70: 2021级
A71: 69 | B71: 余俊灵 | C71: 电商 | D71: 行知 | E71: 10 | F71: 5 | G71: 10.00 | H71: 2019级
A72: 70 | B72: 张闻羽 | C72: 旅管专升本 | D72: 行知 | E72: 10 | F72: 10 | G72: 20.00 | H72: 2021级
A73: 71 | B73: 张闻羽 | C73: 旅管复 | D73: 行知 | E73: 10 | F73: 2 | G73: 4.00 | H73: 2019级
A74: 72 | B74: 赵玉琪 | C74: 旅管复 | D74: 行知 | E74: 10 | F74: 2 | G74: 4.00 | H74: 2019级
A75: 73 | B75: 赵玉琪 | C75: 旅管专升本 | D75: 行知 | E75: 10 | F75: 10 | G75: 20.00 | H75: 2021级
A76: 74 | B76: 郑鹏举 | C76: 工管 | D76: 行知 | E76: 10 | F76: 11 | G76: 22.00 | H76: 2019级
D77: 合计： | F77: =SUM(F3:F76) -> 624 | G77: =SUM(G3:G76) -> 1248.00

Sheet 法学院
A1: 2023年专业实习工作量统计（法学院）
A2: 序号 | B2: 教师 | C2: 专业 | D2: 人员归属 | E2: 实习周数 | F2: 实习生人数 | G2: 实习课时 | H2: 备注
A3: 1 | B3: 段知壮 | C3: 法学 | D3: 行知 | E3: 10 | F3: 14 | G3: =E3*F3*0.2 -> 28.00 | H3: 2019级
A4: 2 | B4: 黄彤 | C4: 法学 | D4: 行知 | E4: 10 | F4: 15 | G4: 30.00 | H4: 2019级
A5: 3 | B5: 黄裕安 | C5: 法学 | D5: 行知 | E5: 10 | F5: 14 | G5: 28.00 | H5: 2019级
A6: 4 | B6: 童颖颖 | C6: 法学 | D6: 行知 | E6: 10 | F6: 15 | G6: 30.00 | H6: 2019级
A7: 5 | B7: 李祖华 | C7: 法学 | D7: 行知 | E7: 10 | F7: 15 | G7: 30.00 | H7: 2019级
A8: 6 | B8: 郭勇 | C8: 法学 | D8: 行知 | E8: 10 | F8: 14 | G8: 28.00 | H8: 2019级
A9: 7 | B9: 郑睿 | C9: 法学 | D9: 行知 | E9: 10 | F9: 15 | G9: 30.00 | H9: 2019级
A10: 8 | B10: 江丽 | C10: 法学 | D10: 行知 | E10: 10 | F10: 14 | G10: 28.00 | H10: 2019级
A11: 9 | B11: 徐源泉 | C11: 法学 | D11: 行知 | E11: 10 | F11: 14 | G11: 28.00 | H11: 2019级
A12: 10 | B12: 胡泽邦 | C12: 法学 | D12: 行知 | E12: 10 | F12: 14 | G12: 28.00 | H12: 2019级
D13: 合计： | F13: =SUM(F3:F12) -> 144 | G13: =SUM(G3:G12) -> 288.00
A14: 备注： | B14: 1.人员归属：按行知/本部/行政/外聘分开填写

Sheet 文学院
A1: 2022学年专业实习工作量统计（文学院）
A2: 序号 | B2: 教师 | C2: 专业 | D2: 人员归属 | E2: 实习周数 | F2: 实习生人数 | G2: 实习课时 | H2: 总课时 | I2: 备注
A3: 1 | B3: 布存明 | C3: 英语 | D3: 行知 | E3: 8 | F3: 13 | G3: =E3*0.2*F3 -> 20.80 | H3: =G3+G4 -> 25.60 | I3: 2019
A4: 2 | C4: 英语（专升本） | D4: 行知 | E4: 8 | F4: 3 | G4: 4.80 | I4: 2021
A5: 3 | B5: 崔颖 | C5: 英语 | D5: 行知 | E5: 8 | F5: 14 | G5: 22.40 | H5: 28.80 | I5: 2019
A6: 4 | C6: 英语（专升本） | D6: 行知 | E6: 8 | F6: 4 | G6: 6.40 | I6: 2021
A7: 5 | B7: 邓琳 | C7: 英语 | D7: 行知 | E7: 8 | F7: 15 | G7: 24.00 | H7: 30.40 | I7: 2019
A8: 6 | C8: 英语（专升本） | D8: 行知 | E8: 8 | F8: 4 | G8: 6.40 | I8: 2021
A9: 7 | B9: 贾玲华 | C9: 英语 | D9: 行知 | E9: 8 | F9: 16 | G9: 25.60 | H9: =G9+G10 -> 32.00 | I9: 2019
A10: 8 | C10: 英语（专升本） | D10: 行知 | E10: 8 | F10: 4 | G10: 6.40 | I10: 2021
A11: 9 | B11: 李霞 | C11: 英语 | D11: 行知 | E11: 8 | F11: 14 | G11: 22.40 | H11: 28.80 | I11: 2019
A12: 10 | C12: 英语（专升本） | D12: 行知 | E12: 8 | F12: 4 | G12: 6.40 | I12: 2021
A13: 11 | B13: 李迎迎 | C13: 英语 | D13: 行知 | E13: 8 | F13: 14 | G13: 22.40 | H13: 27.20 | I13: 2019
A14: 12 | C14: 英语（专升本） | D14: 行知 | E14: 8 | F14: 3 | G14: 4.80 | I14: 2021
A15: 13 | B15: 马丽 | C15: 英语 | D15: 行知 | E15: 8 | F15: 13 | G15: 20.80 | H15: =G15+G16 -> 25.60 | I15: 2019
A16: 14 | C16: 英语（专升本） | D16: 行知 | E16: 8 | F16: 3 | G16: 4.80 | I16: 2021
A17: 15 | B17: 邵素玲 | C17: 英语 | D17: 行知 | E17: 8 | F17: 14 | G17: 22.40 | H17: 28.80 | I17: 2019
A18: 16 | C18: 英语（专升本） | D18: 行知 | E18: 8 | F18: 4 | G18: 6.40 | I18: 2021
A19: 17 | B19: 沈继诚 | C19: 英语 | D19: 行知 | E19: 8 | F19: 14 | G19: 22.40 | H19: 27.20 | I19: 2019
A20: 18 | C20: 英语（专升本） | D20: 行知 | E20: 8 | F20: 3 | G20: 4.80 | I20: 2021
A21: 19 | B21: 沈倩 | C21: 英语 | D21: 行知 | E21: 8 | F21: 13 | G21: 20.80 | H21: =G21+G22 -> 25.60 | I21: 2019
A22: 20 | C22: 英语（专升本） | D22: 行知 | E22: 8 | F22: 3 | G22: 4.80 | I22: 2021
A23: 21 | B23: 盛卓立 | C23: 英语 | D23: 行知 | E23: 8 | F23: 13 | G23: 20.80 | H23: 25.60 | I23: 2019
A24: 22 | C24: 英语（专升本） | D24: 行知 | E24: 8 | F24: 3 | G24: 4.80 | I24: 2021
A25: 23 | B25: 王梅君 | C25: 英语 | D25: 行知 | E25: 8 | F25: 14 | G25: 22.40 | H25: 28.80 | I25: 2019
A26: 24 | C26: 英语（专升本） | D26: 行知 | E26: 8 | F26: 4 | G26: 6.40 | I26: 2021
A27: 25 | B27: 徐国红 | C27: 英语 | D27: 行知 | E27: 8 | F27: 14 | G27: 22.40 | H27: =G27+G28 -> 28.80 | I27: 2019
A28: 26 | C28: 英语（专升本） | D28: 行知 | E28: 8 | F28: 4 | G28: 6.40 | I28: 2021
A29: 27 | B29: 袁六艳 | C29: 英语 | D29: 行知 | E29: 8 | F29: 14 | G29: 22.40 | H29: 28.80 | I29: 2019
A30: 28 | C30: 英语（专升本） | D30: 行知 | E30: 8 | F30: 4 | G30: 6.40 | I30: 2021
A31: 29 | B31: 郑群 | C31: 英语 | D31: 行知 | E31: 8 | F31: 13 | G31: 20.80 | H31: 27.20 | I31: 2019
A32: 30 | C32: 英语（专升本） | D32: 行知 | E32: 8 | F32: 4 | G32: 6.40 | I32: 2021
A33: 31 | B33: 陈德峰 | C33: 汉语言文学 | D33: 行知 | E33: 12 | F33: 17 | G33: 40.80 | H33: =G33+G34 -> 54.80 | I33: 2019
A34: 32 | C34: 汉语言文学（专升本） | D34: 行知 | E34: 10 | F34: 7 | G34: 14.00 | I34: 2021
A35: 33 | B35: 韩洪举 | C35: 汉语言文学 | D35: 行知 | E35: 12 | F35: 16 | G35: 38.40 | H35: 52.40 | I35: 2019
A36: 34 | C36: 汉语言文学（专升本） | D36: 行知 | E36: 10 | F36: 7 | G36: 14.00 | I36: 2021
A37: 35 | B37: 华金余 | C37: 汉语言文学 | D37: 行知 | E37: 12 | F37: 17 | G37: 40.80 | H37: 54.80 | I37: 2019
A38: 36 | C38: 汉语言文学（专升本） | D38: 行知 | E38: 10 | F38: 7 | G38: 14.00 | I38: 2021
A39: 37 | B39: 马蔚 | C39: 汉语言文学 | D39: 行知 | E39: 12 | F39: 17 | G39: 40.80 | H39: =G39+G40 -> 58.80 | I39: 2019
A40: 38 | C40: 汉语言文学（专升本） | D40: 行知 | E40: 10 | F40: 9 | G40: 18.00 | I40: 2021
A41: 39 | B41: 宁辰 | C41: 汉语言文学 | D41: 行知 | E41: 12 | F41: 17 | G41: 40.80 | H41: 54.80 | I41: 2019
A42: 40 | C42: 汉语言文学（专升本） | D42: 行知 | E42: 10 | F42: 7 | G42: 14.00 | I42: 2021
A43: 41 | B43: 孙竹 | C43: 汉语言文学 | D43: 行知 | E43: 12 | F43: 17 | G43: 40.80 | H43: 54.80 | I43: 2019
A44: 42 | C44: 汉语言文学（专升本） | D44: 行知 | E44: 10 | F44: 7 | G44: 14.00 | I44: 2021
A45: 43 | B45: 童水明 | C45: 汉语言文学 | D45: 行知 | E45: 12 | F45: 16 | G45: 38.40 | H45: =G45+G46 -> 52.40 | I45: 2019
A46: 44 | C46: 汉语言文学（专升本） | D46: 行知 | E46: 10 | F46: 7 | G46: 14.00 | I46: 2021
A47: 45 | B47: 魏晓彤 | C47: 汉语言文学 | D47: 行知 | E47: 12 | F47: 17 | G47: 40.80 | H47: 54.80 | I47: 2019
A48: 46 | C48: 汉语言文学（专升本） | D48: 行知 | E48: 10 | F48: 7 | G48: 14.00 | I48: 2021
A49: 47 | B49: 吴思萱 | C49: 汉语言文学 | D49: 行知 | E49: 12 | F49: 17 | G49: 40.80 | H49: 40.80 | I49: 2019
A50: 49 | B50: 杨雪兰 | C50: 汉语言文学 | D50: 行知 | E50: 12 | F50: 17 | G50: 40.80 | H50: 54.80 | I50: 2019
A51: 50 | C51: 汉语言文学（专升本） | D51: 行知 | E51: 10 | F51: 7 | G51: 14.00 | I51: 2021
A52: 51 | B52: 俞敏华 | C52: 汉语言文学 | D52: 行知 | E52: 12 | F52: 17 | G52: 40.80 | H52: =G52+G53 -> 54.80 | I52: 2019
A53: 52 | C53: 汉语言文学（专升本） | D53: 行知 | E53: 10 | F53: 7 | G53: 14.00 | I53: 2021
A54: 53 | B54: 虞建光 | C54: 汉语言文学 | D54: 行知 | E54: 12 | F54: 17 | G54: 40.80 | H54: 54.80 | I54: 2019
A55: 54 | C55: 汉语言文学（专升本） | D55: 行知 | E55: 10 | F55: 7 | G55: 14.00 | I55: 2021
A56: 55 | B56: 张家合 | C56: 汉语言文学 | D56: 行知 | E56: 12 | F56: 17 | G56: 40.80 | H56: 54.80 | I56: 2019
A57: 56 | C57: 汉语言文学（专升本） | D57: 行知 | E57: 10 | F57: 7 | G57: 14.00 | I57: 2021
D58: 合计： | F58: =SUM(F3:F57) -> 567 | G58: =SUM(G3:G57) -> 1116.80 | H58: =SUM(H3:H56) -> 1116.80

Sheet 设计艺术学院
A1: 2023年专业实习工作量统计（设计艺术学院）
A2: 序号 | B2: 教师 | C2: 专业 | D2: 人员归属 | E2: 实习周数 | F2: 实习生人数 | G2: 实习课时
A3: 1 | B3: 裴张龙 | C3: 视觉传达设计 | D3: 行知 | E3: 8 | F3: 29 | G3: =E3*F3*0.2 -> 46.40
A4: 2 | B4: 高婷婷 | C4: 视觉传达设计 | D4: 行知 | E4: 8 | F4: 28 | G4: 44.80
A5: 3 | B5: 袁喆 | C5: 产品设计 | D5: 行知 | E5: 8 | F5: 25 | G5: 40.00
A6: 4 | B6: 岳秀华 | C6: 环境设计 | D6: 行知 | E6: 8 | F6: 28 | G6: 44.80
A7: 5 | B7: 孙攀 | C7: 环境设计 | D7: 行知 | E7: 8 | F7: 28 | G7: 44.80
A8: 6 | B8: 俞亚明 | C8: 环境设计(专升本） | D8: 行知 | E8: 8 | F8: 37 | G8: 59.20
C9: 合计 | F9: 175 | G9: 280.00

Sheet 理学院
A1: 2023年专业实习工作量统计（理学院）
A2: 序号 | B2: 姓名 | C2: 实习专业 | D2: 人数 | E2: 实习周数 | F2: 工作量 | G2: 总课时 | H2: 备注
A3: 1 | B3: 陈寒松 | C3: 环境工程 | D3: 6 | E3: 16 | F3: =D3*0.2*E3 -> 19.20 | G3: 19.20
A4: 2 | B4: 胡鸿雨 | C4: 应用化学 | D4: 8 | E4: 10 | F4: 16.00 | G4: 16.00
A5: 3 | B5: 胡晓晓 | C5: 生物技术 | D5: 8 | E5: 10 | F5: 16.00 | G5: 16.00
A6: 4 | B6: 李双喜 | C6: 生物技术 | D6: 1 | E6: 10 | F6: 2.00 | G6: =F6+F7 -> 28.00
A7: 5 | B7: 李双喜 | C7: 食品质量与安全 | D7: 13 | E7: 10 | F7: 26.00
A8: 6 | B8: 李小忠 | C8: 环境工程 | D8: 6 | E8: 16 | F8: 19.20 | G8: 19.20
A9: 7 | B9: 梁刚锋 | C9: 应用化学 | D9: 1 | E9: 10 | F9: 2.00 | G9: 2.00
A10: 8 | B10: 刘俊华 | C10: 应用化学 | D10: 2 | E10: 10 | F10: 4.00 | G10: 4.00
A11: 9 | B11: 裘建平 | C11: 环境工程 | D11: 7 | E11: 16 | F11: 22.40 | G11: 22.40
A12: 10 | B12: 饶玉春 | C12: 生物技术 | D12: 13 | E12: 10 | F12: 26.00 | G12: 26.00 | H12: 本部外聘
A13: 11 | B13: 阮琴 | C13: 生物技术 | D13: 3 | E13: 10 | F13: 6.00 | G13: 6.00
A14: 12 | B14: 孙晓明 | C14: 食品质量与安全 | D14: 9 | E14: 10 | F14: 18.00 | G14: 18.00
A15: 13 | B15: 涂燕红 | C15: 环境工程 | D15: 4 | E15: 16 | F15: 12.80 | G15: 12.80
A16: 14 | B16: 王芳 | C16: 生物技术 | D16: 17 | E16: 10 | F16: 34.00 | G16: =F16+F17+F18 -> 48.00
A17: 15 | B17: 王芳 | C17: 应用化学 | D17: 3 | E17: 10 | F17: 6.00
A18: 16 | B18: 王芳 | C18: 食品质量与安全 | D18: 4 | E18: 10 | F18: 8.00
A19: 17 | B19: 王剑峰 | C19: 食品质量与安全 | D19: 5 | E19: 10 | F19: 10.00 | G19: 10.00
A20: 18 | B20: 吴婷 | C20: 环境工程 | D20: 8 | E20: 16 | F20: 25.60 | G20: 25.60
A21: 19 | B21: 谢云龙 | C21: 应用化学 | D21: 18 | E21: 10 | F21: 36.00 | G21: =F21+F22 -> 38.00
A22: 20 | B22: 谢云龙 | C22: 食品质量与安全 | D22: 1 | E22: 10 | F22: 2.00
A23: 21 | B23: 严晓阳 | C23: 应用化学 | D23: 9 | E23: 10 | F23: 18.00 | G23: 18.00
A24: 22 | B24: 颜磊 | C24: 应用化学 | D24: 2 | E24: 10 | F24: 4.00 | G24: 4.00
A25: 23 | B25: 杨莉 | C25: 生物技术 | D25: 1 | E25: 10 | F25: 2.00 | G25: 4.00 | H25: 本部外聘
A26: 24 | B26: 杨莉 | C26: 食品质量与安全 | D26: 1 | E26: 10 | F26: 2.00
A27: 25 | B27: 袁建锋 | C27: 生物技术 | D27: 5 | E27: 10 | F27: 10.00 | G27: 10.00
A28: 26 | B28: 赵国良 | C28: 应用化学 | D28: 4 | E28: 10 | F28: 8.00 | G28: 8.00
A29: 27 | B29: 郑绍成 | C29: 环境工程 | D29: 2 | E29: 16 | F29: 6.40 | G29: =F29+F30 -> 22.40
A30: 28 | B30: 郑绍成 | C30: 应用化学 | D30: 8 | E30: 10 | F30: 16.00
C31: 合计 | D31: =SUM(D3:D30) -> 169 | G31: 377.60

Sheet 工学院
A1: 2023年专业实习工作量统计（工学院）
A2: 序号 | B2: 教师 | C2: 班级 | D2: 人员归属 | E2: 实习周数 | F2: 实习生人数 | G2: 实习课时 | H2: 总课时 | I2: 备注 （201 级）
A3: 1 | B3: 曹振新 | C3: 电子信息工程（三校生）192班 | D3: 行知 | E3: 10 | F3: 40 | G3: =E3*F3*0.2 -> 80.00 | H3: =G3 -> 80.00 | I3: 2019级
A4: 2 | B4: 杜巧连 | C4: 机械设计制造及其自动化192班 | D4: 行知 | E4: 4 | F4: 27 | G4: 21.60 | H4: 21.60 | I4: 2019级
A5: 3 | B5: 胡礼广 | C5: 机械设计制造及其自动化193班 | D5: 行知 | E5: 4 | F5: 32 | G5: 25.60 | H5: 57.60 | I5: 2019级
A6: 4 | B6: 胡礼广 | C6: 机械设计制造及其自动化（三校生）191班 | D6: 行知 | E6: 4 | F6: 40 | G6: 32.00 | I6: 2019级
A7: 5 | B7: 李凝 | C7: 机械设计制造及其自动化191班 | D7: 行知 | E7: 4 | F7: 26 | G7: 20.80 | H7: 20.80 | I7: 2019级
A8: 6 | B8: 林祝亮 | C8: 电子信息工程（三校生）191班 | D8: 行知 | E8: 10 | F8: 41 | G8: 82.00 | H8: 82.00 | I8: 2019级
A9: 7 | B9: 倪应华 | C9: 计算机科学与技术(三校生)191班 | D9: 行知 | E9: 10 | F9: 28 | G9: 56.00 | H9: 97.40 | I9: 2019级
A10: 8 | B10: 倪应华 | C10: 网络空间安全192班 | D10: 行知 | E10: 10 | F10: 6 | G10: 12.00 | I10: 2019级
A11: 9 | B11: 倪应华 | C11: 计算机科学与技术(专升本)211班 | D11: 行知 | E11: 7 | F11: 21 | G11: 29.40 | I11: 2021级
A12: 10 | B12: 吴根柱 | C12: 电子信息工程191班 | D12: 行知 | E12: 10 | F12: 29 | G12: 58.00 | H12: =G12 -> 58.00 | I12: 2019级
A13: 11 | B13: 吴建军 | C13: 计算机科学与技术(专升本)212班 | D13: 行知 | E13: 7 | F13: 23 | G13: 32.20 | H13: 100.20 | I13: 2021级
A14: 12 | B14: 吴建军 | C14: 网络空间安全191班 | D14: 行知 | E14: 10 | F14: 34 | G14: 68.00 | I14: 2019级
A15: 13 | B15: 吴黎黎 | C15: 电子信息工程192班 | D15: 行知 | E15: 10 | F15: 29 | G15: 58.00 | H15: =G15 -> 58.00 | I15: 2019级
A16: 14 | B16: 袁利永 | C16: 计算机科学与技术(三校生)191班 | D16: 行知 | E16: 10 | F16: 28 | G16: 56.00 | H16: 97.40 | I16: 2019级
A17: 15 | B17: 袁利永 | C17: 计算机科学与技术(专升本)211班 | D17: 行知 | E17: 7 | F17: 21 | G17: 29.40 | I17: 2021级
A18: 16 | B18: 袁利永 | C18: 网络空间安全191班 | D18: 行知 | E18: 10 | F18: 6 | G18: 12.00 | I18: 2019级
A19: 17 | B19: 周家庆 | C19: 网络空间安全192班 | D19: 行知 | E19: 10 | F19: 36 | G19: 72.00 | H19: 105.60 | I19: 2019级
A20: 18 | B20: 周家庆 | C20: 计算机科学与技术(专升本)212班 | D20: 行知 | E20: 7 | F20: 24 | G20: 33.60 | I20: 2021级
D21: 合计： | F21: =SUM(F3:F20) -> 491 | G21: 778.60 | H21: 778.60
